[Event "XLIV Barbera del Valles-A 2022"]
[Site "Barbera del Valles"]
[Date "2022.07.05"]
[Round "2.10"]
[White "Moskalenko, Viktor"]
[Black "Pimpalkhare Vedant"]
[Result "1-0"]
[ECO "D00"]
[WhiteElo "2457"]
[BlackElo "2057"]
[Annotator "TA"]
[PlyCount "105"]
[EventDate "2022.07.04"]
[EventType "swiss"]
[EventCountry "ESP"]
[SourceTitle "playchess.com"]
[Source "ChessBase"]
[SourceQuality "1"]
[TimeControl "5400+30"]

{[%evp 9,105,0,0,-8,0,0,0,-10,-9,-13,0,0,0,0,41,30,40,17,27,8,14,20,39,48,57,45,45,52,62,47,78,73,75,75,72,70,65,62,56,56,54,62,56,55,55,38,79,70,100,87,104,93,141,142,147,150,141,154,154,153,151,152,178,149,147,149,185,139,95,95,497,712,558,642,756,751,808,849,816,745,808,826,783,786,733,680,1346,1246,1122,1041,1071,1005,927,691,813,615,434,362]} 1. d4 {[%emt 0:00:06]} e6 {[%emt 0:00:09]} 2. Bf4 {[%emt 0:01:25]} c5 {[%emt 0:01:45]} 3. e3 {[%emt 0:00:13]} Nf6 {[%emt 0:00:54]} 4. c3 {[%emt 0:00:52]} d5 {[%emt 0:01:19]} 5. Nd2 {[%emt 0:00:43]} Bd6 {[%emt 0:00:11]} 6. Bg3 {[%emt 0:02:00] D00: 1 d4 d5: Unusual lines.} Qc7 {[%emt 0:00:08]} 7. dxc5 $1 {[%emt 0:01:25]} Qxc5 {[%emt 0:01:24]} 8. Ngf3 {[%emt 0:00:24] The position is equal.} O-O {[%emt 0:02:08]} 9. Rc1 {[%emt 0:03:38]} Nbd7 {[%emt 0:08:52][%cal Bb8d7,Bd7b6,Bb6d5][%mdl 32]} 10. c4 {[%emt 0:00:32]} Bxg3 {[%emt 0:03:09]} 11. hxg3 {[%emt 0:00:07] [#]} Rd8 $146 {[%emt 0:01:57]} ({Predecessor:} 11... h6 12. a3 b6 13. cxd5 Qxd5 14. Bc4 Qd6 15. O-O Bb7 16. Qe2 a6 17. Rfd1 Qe7 {0-1 (41) Salinas Herrera,P (2514)-Solon,N (2306) Chess.com INT 2020}) 12. cxd5 {[%emt 0:13:28]} Qxd5 {[%emt 0:00:03]} 13. Nc4 {[%emt 0:01:06]} Nb6 {[%emt 0:03:42] Threatens to win with ...Nxc4.} 14. Qxd5 {[%emt 0:00:32]} Nbxd5 {[%emt 0:01:30]} 15. Rh4 {[%emt 0:26:19]} Ne7 {[%emt 0:02:28]} (15... Bd7 {keeps more tension.} 16. Nfe5 Rdc8 17. Kd2 Be8) 16. Rd4 {[%emt 0:01:11]} Rxd4 {[%emt 0:07:41]} 17. Nxd4 {[%emt 0:00:13]} Ne8 {[%emt 0:04:10]} 18. Be2 {[%emt 0:05:42]} Rb8 {[%emt 0:10:23]} 19. Bf3 {[%emt 0:17:50]} f6 {[%emt 0:06:51]} 20. Nb5 {[%emt 0:05:46] White is much more active. The black rooks are badly placed.} Bd7 {[%emt 0:09:17]} 21. Nxa7 {[%emt 0:04:20] Rd1 is the strong threat.} Ra8 {[%emt 0:00:16]} 22. Nb6 $1 {[%emt 0:00:18]} Rxa7 {[%emt 0:00:10]} 23. Nxd7 {[%emt 0:00:04]} Rxa2 {[%emt 0:01:06]} 24. Rc2 {[%emt 0:00:32]} b5 {[%emt 0:03:30]} 25. Nc5 {[%emt 0:03:22]} Kf7 {[%emt 0:01:16]} 26. Kd2 {[%emt 0:02:08]} Nd6 {[%emt 0:02:57]} 27. b3 {[%emt 0:00:09]} Ra7 {[%emt 0:01:36] [#]} 28. Kc3 $1 {[%emt 0:02:08]} Nec8 {[%emt 0:03:38]} 29. Kb4 {[%emt 0:00:36]} Ke7 {[%emt 0:00:53]} 30. Nb7 {[%emt 0:00:49] Strongly threatening Rc7+.} Nxb7 {[%emt 0:06:30]} (30... Kd7 $142) 31. Rc7+ $16 {[%emt 0:02:38]} Kd8 {[%emt 0:01:09]} 32. Rxb7 {[%emt 0:00:09]} Rxb7 {[%emt 0:00:15]} 33. Bxb7 {[%emt 0:00:02][%mdl 4096] Endgame KB-KN} Nd6 {[%emt 0:00:10]} 34. Bc6 {[%emt 0:01:16]} Kc7 {[%emt 0:00:17] [#]} 35. Kc5 {[%emt 0:00:17]} ({Don't play} 35. Bxb5 $6 Ne4 $14) 35... h5 {[%emt 0:02:03]} 36. Bf3 {[%emt 0:02:14]} g6 {[%emt 0:00:46]} 37. b4 {[%emt 0:00:26]} f5 {[%emt 0:01:19]} 38. Bc6 {[%emt 0:00:58]} g5 {[%emt 0:02:14]} 39. Bf3 {[%emt 0:00:49]} ({But not} 39. Bxb5 $6 Ne4+ 40. Kc4 Nxf2 $11) 39... h4 $2 {[%emt 0:01:38][%mdl 8192] Black cannot hold the game after this.} (39... g4 $16 {is tougher.}) 40. gxh4 $18 {[%emt 0:00:32] White is clearly winning.} gxh4 {[%emt 0:00:03]} 41. Bc6 {[%emt 0:00:57]} Nf7 {[%emt 0:05:21]} 42. f4 {[%emt 0:00:26] Against Ne5} Nd6 {[%emt 0:01:47]} 43. Bxb5 {[%emt 0:00:09]} Ne4+ {[%emt 0:00:27]} 44. Kd4 {[%emt 0:00:10]} Kd6 {[%emt 0:00:01]} 45. Be2 {[%emt 0:00:55]} Nf6 {[%emt 0:00:13]} 46. b5 {[%emt 0:01:07]} Nd7 {[%emt 0:00:42]} 47. Bf3 {[%emt 0:01:36]} e5+ {[%emt 0:01:14]} 48. fxe5+ {[%emt 0:00:37]} Nxe5 {[%emt 0:00:01]} 49. Be2 {[%emt 0:00:05]} Ng6 {[%emt 0:03:02]} 50. Bh5 {[%emt 0:00:33]} Ne5 {[%emt 0:00:13]} 51. Be8 {[%emt 0:00:18]} Ng4 {[%emt 0:00:28]} 52. Bg6 {[%emt 0:00:35]} Nh6 {[%emt 0:00:52]} 53. Bh7 {[%emt 0:00:13] Weighted Error Value: White=0.15 (very precise) /Black=0.29 (precise)} 1-0

[Event "XLIV Barbera del Valles-A 2022"]
[Site "Barbera del Valles"]
[Date "2022.07.06"]
[Round "3.1"]
[White "Alsina Leal, Daniel"]
[Black "Gkoumas, Georgios"]
[Result "1/2-1/2"]
[ECO "B62"]
[WhiteElo "2525"]
[BlackElo "2427"]
[Annotator "TA"]
[PlyCount "111"]
[EventDate "2022.07.04"]
[EventType "swiss"]
[EventCountry "ESP"]
[SourceTitle "playchess.com"]
[Source "ChessBase"]
[SourceQuality "1"]
[TimeControl "5400+30"]

{[%evp 16,111,26,23,21,24,39,23,24,12,18,18,28,12,21,10,17,-4,0,0,86,109,110,102,111,97,130,68,68,69,131,135,140,127,132,127,158,120,196,216,243,162,181,188,189,185,192,186,197,194,202,195,272,277,259,208,212,204,218,169,170,177,178,166,154,146,170,121,119,106,97,66,45,8,8,16,11,6,31,0,0,0,8,10,14,8,14,0,0,0,0,0,0,0,0,0,0,0]} 1. e4 {[%emt 0:00:02]} c5 {[%emt 0:00:08]} 2. Nf3 {[%emt 0:00:12]} Nc6 {[%emt 0:00:09]} 3. d4 {[%emt 0:00:13]} cxd4 {[%emt 0:00:06]} 4. Nxd4 {[%emt 0:00:05]} Nf6 {[%emt 0:00:08]} 5. Nc3 {[%emt 0:00:11]} d6 {[%emt 0:00:07]} 6. Bg5 {[%emt 0:00:18]} e6 {[%emt 0:00:06]} 7. Qd3 {[%emt 0:00:17]} Bd7 {[%emt 0:00:05] The modern move.} 8. O-O-O {[%emt 0:00:43]} a6 {[%emt 0:00:23]} 9. f4 {[%emt 0:00:43]} h6 {[%emt 0:04:02] B62: Sicilian: Richter-Rauzer: 6...e6: Unusual White 7th moves.} 10. Bh4 {[%emt 0:00:57]} Be7 {[%emt 0:00:13]} 11. Nf3 {[%emt 0:00:41]} Rc8 {[%emt 0:01:50] White has an edge.} 12. Kb1 {[%emt 0:05:10]} Qc7 {[%emt 0:15:10] [#]} 13. Qd2 $146 {[%emt 0:08:38][%cal Og2g4]} ({Predecessor:} 13. Be2 d5 14. e5 Ng4 15. Bxe7 Nxe7 16. Rhf1 Nf5 17. Nd4 Nge3 18. Nxf5 Nxf5 19. g4 {½-½ (27) Ilyin,I (2078)-Schulz,H (1709) LSS email 2012}) 13... b5 {[%emt 0:02:24]} 14. Bd3 {[%emt 0:03:37]} b4 {[%emt 0:10:44]} 15. Ne2 {[%emt 0:03:10]} a5 {[%emt 0:05:55]} 16. g4 {[%emt 0:13:07]} a4 {[%emt 0:01:10]} 17. Rhg1 {[%emt 0:07:44]} b3 {[%emt 0:20:42]} (17... Qb6 $11 {remains equal.}) 18. cxb3 $16 {[%emt 0:05:19]} axb3 {[%emt 0:00:06] [#]} 19. a3 {[%emt 0:00:09]} ({Of course not} 19. axb3 $6 Rb8 $11) 19... Qa5 {[%emt 0:16:25]} 20. Nc3 {[%emt 0:10:04]} (20. Qxa5 {feels hotter.} Nxa5 21. e5 Nd5 22. Bxe7 Kxe7 23. exd6+ Kxd6 24. Ne5) 20... d5 {[%emt 0:01:36]} 21. Bxf6 {[%emt 0:12:23]} (21. e5 $16 Ng8 22. Bf2) 21... Bxf6 $14 {[%emt 0:00:59]} 22. exd5 {[%emt 0:06:31]} Bxc3 {[%emt 0:01:03]} ({Better is} 22... exd5 $14 23. Qe2+ Kf8) 23. Qxc3 $16 {[%emt 0:00:54]} Qxc3 {[%emt 0:00:07]} 24. bxc3 {[%emt 0:00:06]} exd5 {[%emt 0:00:43]} 25. Bb5 {[%emt 0:12:43]} O-O {[%emt 0:03:17]} 26. Kb2 {[%emt 0:03:02] Strongly threatening a4.} ({Don't do} 26. Rxd5 $6 Be6 27. Rd6 Na7 $14) 26... Rfe8 {[%emt 0:11:43]} (26... Nb8 $16 27. Rxd5 Bxb5 28. Rxb5 Na6) 27. Rxd5 $18 {[%emt 0:00:33]} Re3 {[%emt 0:00:03]} 28. Rd3 {[%emt 0:01:10]} ({Don't play} 28. Rxd7 $6 Rxf3 29. Rf1 Rh3) 28... Rxd3 {[%emt 0:00:05]} 29. Bxd3 {[%emt 0:00:04]} Na5 {[%emt 0:00:48]} 30. g5 {[%emt 0:01:55]} Kf8 {[%emt 0:01:25]} 31. gxh6 {[%emt 0:00:43]} gxh6 {[%emt 0:00:02]} 32. Re1 {[%emt 0:00:35]} f6 {[%emt 0:01:41]} 33. Nd4 {[%emt 0:02:13]} Rc5 {[%emt 0:00:58]} (33... h5 $142 34. Ba6 Ra8) 34. Nxb3 {[%emt 0:01:13]} Rd5 {[%emt 0:00:03]} 35. Nd4 {[%emt 0:00:59]} Rh5 {[%emt 0:00:07]} 36. Re2 {[%emt 0:00:29]} Nb7 {[%emt 0:00:15]} 37. c4 {[%emt 0:01:27]} Nc5 {[%emt 0:00:17]} 38. Bc2 {[%emt 0:00:07]} Rh4 {[%emt 0:00:12]} 39. Rf2 {[%emt 0:00:32]} Rh3 {[%emt 0:00:07]} 40. Rd2 {[%emt 0:00:26]} h5 {[%emt 0:00:56]} 41. Nb3 {[%emt 0:00:51]} ({White should play} 41. Nb5 $18) 41... Na4+ $16 {[%emt 0:00:10]} 42. Kc1 {[%emt 0:00:11]} Be8 {[%emt 0:00:36]} 43. c5 {[%emt 0:00:44]} Bf7 {[%emt 0:00:12]} 44. Nd4 {[%emt 0:00:47]} Nxc5 {[%emt 0:00:04]} 45. Kb2 {[%emt 0:00:26]} Be8 $1 {[%emt 0:00:26] Against a4} 46. Nf5 {[%emt 0:00:33]} Na4+ {[%emt 0:01:45]} 47. Bxa4 {[%emt 0:00:19]} (47. Kc1 $5 {[%cal Rd2d8]}) 47... Bxa4 $14 {[%emt 0:00:02][%mdl 4096] Endgame KRB-KRN. The position is equal.} 48. Ng3 {[%emt 0:00:13]} h4 {[%emt 0:00:08]} 49. Ne4 {[%emt 0:00:38]} Ke7 {[%emt 0:01:11]} 50. Nc3 {[%emt 0:00:49]} Bc6 {[%emt 0:00:16]} 51. Rf2 {[%emt 0:00:24]} Ke6 {[%emt 0:00:16]} 52. a4 {[%emt 0:00:21]} Kd6 {[%emt 0:00:23]} 53. Kc2 {[%emt 0:00:48]} Kc5 {[%emt 0:00:07]} 54. f5 {[%emt 0:00:15]} Kb4 {[%emt 0:00:27]} 55. Rf4+ {[%emt 0:00:12]} Kc5 {[%emt 0:00:01]} 56. Rf2 {[%emt 0:00:41] Blacks defense is rewarded with a draw.  Weighted Error Value: White=0.11 (very precise) /Black=0.12 (very precise)} 1/2-1/2

[Event "XLIV Barbera del Valles-A 2022"]
[Site "Barbera del Valles"]
[Date "2022.07.06"]
[Round "3.2"]
[White "Sanchez, Sebastian Felipe"]
[Black "Asis Gargatagli, Hipolito"]
[Result "0-1"]
[ECO "E90"]
[WhiteElo "2440"]
[BlackElo "2514"]
[Annotator "TA"]
[PlyCount "80"]
[EventDate "2022.07.04"]
[EventType "swiss"]
[EventCountry "ESP"]
[SourceTitle "playchess.com"]
[Source "ChessBase"]
[SourceQuality "1"]
[TimeControl "5400+30"]

{[%evp 13,80,25,36,39,40,18,37,14,17,0,43,38,59,-27,0,-18,-9,-13,-12,-34,0,-43,-40,-43,-43,-106,-92,-109,-59,-321,-225,-334,-310,-320,-309,-485,-452,-468,-108,-262,-238,-243,-156,-140,-139,-186,41,-39,-43,-34,0,-116,-118,-116,-94,-531,-521,-29972,-29972,-29989,-29971,-29969,-29971,-29970,-29970,-29964,-29958,-5402,-5285]} 1. d4 {[%emt 0:00:03]} Nf6 {[%emt 0:00:11]} 2. c4 {[%emt 0:00:08]} g6 {[%emt 0:00:07]} 3. Nc3 {[%emt 0:00:07]} Bg7 {[%emt 0:00:07]} 4. e4 {[%emt 0:02:04]} d6 {[%emt 0:00:08]} 5. h3 {[%emt 0:00:14]} O-O {[%emt 0:00:35]} 6. Nf3 {[%emt 0:00:06]} e5 {[%emt 0:00:24]} 7. d5 {[%emt 0:00:06]} Nh5 {[%emt 0:00:42]} 8. g3 {[%emt 0:00:47] E90: King's Indian: Classical: Early deviations and 6 h3.} Na6 {[%emt 0:00:36][%cal Bb8a6,Ba6c5,Bc5e4][%mdl 32]} 9. a3 {[%emt 0:12:18]} f5 {[%emt 0:11:27]} 10. exf5 {[%emt 0:00:30] White is slightly better.} gxf5 {[%emt 0:00:05]} 11. Nh4 {[%emt 0:00:08]} Nf6 {[%emt 0:04:54]} (11... Nf4 $5) 12. Bg5 {[%emt 0:05:30]} (12. Qc2 $5 {[%cal Rh4f5]}) 12... h6 {[%emt 0:07:03] [#]} 13. Bd2 $146 {[%emt 0:09:23]} (13. Be3 $1 $14) ({Predecessor:} 13. Be3 Nd7 14. Qc2 f4 15. Bd2 e4 16. Nxe4 Ndc5 17. Bd3 fxg3 18. fxg3 Nxd3+ 19. Qxd3 Bxb2 {½-½ (25) Enev,Z (2298)-Nichols,S (2408) LSS email 2020}) 13... Nc5 $1 $11 {[%emt 0:02:47]} 14. Qc2 {[%emt 0:00:09]} Nfe4 {[%emt 0:15:50]} 15. Nxe4 {[%emt 0:00:19]} Nxe4 {[%emt 0:00:06]} (15... fxe4 16. Be3 $16 (16. b4 Nd3+ 17. Bxd3 exd3 $17)) 16. Be3 {[%emt 0:00:06]} Qf6 {[%emt 0:00:32]} 17. O-O-O {[%emt 0:04:29]} Bd7 {[%emt 0:02:57]} 18. Kb1 {[%emt 0:29:24]} Nc5 {[%emt 0:11:16]} 19. b3 {[%emt 0:00:51] Inhibits Ba4.} (19. Bxc5 $15 dxc5 20. Rd2) 19... a5 $17 {[%emt 0:00:19] aiming for ...a4.} (19... e4 $6 20. Bd4 Qf7 21. Bxg7 Qxg7 22. Ng2 $11) 20. Ka2 {[%emt 0:01:07]} Ra6 {[%emt 0:03:05]} (20... a4 $17 21. b4 Nb3) 21. Bd3 $2 {[%emt 0:06:29][%mdl 8192]} (21. a4 $15) 21... Rb6 {[%emt 0:04:47] Threatens to win with ...e4.} (21... e4 22. Be2 $15) 22. Rb1 {[%emt 0:00:44]} (22. Be2 $142) 22... e4 $19 {[%emt 0:01:31]} 23. Be2 {[%emt 0:00:55]} f4 $1 {[%emt 0:11:47]} 24. Bxc5 {[%emt 0:00:08]} (24. gxf4 {was forced.} Qxh4 25. Rhg1) 24... dxc5 {[%emt 0:00:05]} 25. Bg4 {[%emt 0:04:20] [#]} Be8 {[%emt 0:03:30]} (25... fxg3 $1 $19 {is more deadly.} 26. fxg3 (26. Bxd7 Qxh4) 26... Qd4 $1) 26. Rhe1 $2 {[%emt 0:11:39]} (26. a4 $17) 26... a4 {[%emt 0:06:39]} 27. b4 {[%emt 0:02:38]} cxb4 {[%emt 0:00:32]} 28. axb4 {[%emt 0:00:03]} e3 $1 {[%emt 0:01:03]} ({Not} 28... fxg3 29. fxg3 Qc3 30. Be6+ Kh8 31. Qxc3 Bxc3 32. Rxe4 $11) 29. fxe3 {[%emt 0:01:38]} (29. Bf5 $17) 29... fxe3 $2 {[%emt 0:06:04]} (29... fxg3 $19 30. Nf5 Qc3 31. Qxc3 Bxc3) 30. Rxe3 {[%emt 0:01:06] [#]} ({White should try} 30. Ka3 $14) 30... Rxb4 $1 $15 {[%emt 0:00:18]} 31. Rf3 {[%emt 0:01:45]} Qd6 $40 {[%emt 0:03:35][%mdl 128] And now ...Rxf3 would win. Black is up to no good. Chess con chili.} (31... Qd4 $5 {[%cal Rb4b1]} 32. Rxf8+ Kxf8 $15) 32. Be6+ {[%emt 0:00:05]} (32. Nf5 $11 Rxb1 33. Qxb1) 32... Kh8 $1 $17 {[%emt 0:00:09]} 33. Rxf8+ {[%emt 0:06:53]} ({Don't blunder} 33. c5 $2 {[#]} Rxb1 $1 34. Kxb1 Rxf3 $1 35. cxd6 Rf1+ 36. Qc1 Rxc1+ 37. Kxc1 cxd6 $19) 33... Qxf8 {[%emt 0:00:04]} 34. Rxb4 {[%emt 0:00:38][%mdl 8192]} (34. Nf5 $17 {was the crucial defense.}) 34... Qxb4 $19 {[%emt 0:00:05]} 35. Bf5 {[%emt 0:00:05]} Qe1 {[%emt 0:02:15][%csl Gg7][%cal Re1a1]} 36. Qb1 {[%emt 0:00:06]} Qe2+ {[%emt 0:00:28]} 37. Qc2 {[%emt 0:00:17]} Qf1 {[%emt 0:00:04][%csl Gg7][%cal Rf1a1]} 38. Ka3 {[%emt 0:01:35]} Qa1+ {[%emt 0:00:14]} 39. Kb4 {[%emt 0:00:05]} Bf8+ {[%emt 0:00:26] A strong pair of Bishops.} 40. c5 {[%emt 0:00:57]} Qd4+ {[%emt 0:00:12] Weighted Error Value: White=0.78/Black=0.39} 0-1

[Event "XLIV Barbera del Valles-A 2022"]
[Site "Barbera del Valles"]
[Date "2022.07.06"]
[Round "3.3"]
[White "Cuartas, Jaime Alexander"]
[Black "Rios, Cristhian Camilo"]
[Result "0-1"]
[ECO "B30"]
[WhiteElo "2513"]
[BlackElo "2399"]
[Annotator "TA"]
[PlyCount "122"]
[EventDate "2022.07.04"]
[EventType "swiss"]
[EventCountry "ESP"]
[SourceTitle "playchess.com"]
[Source "ChessBase"]
[SourceQuality "1"]
[TimeControl "5400+30"]

{[%evp 9,122,0,0,0,0,0,0,14,41,38,71,12,26,0,0,9,12,13,16,0,0,0,0,-19,0,-13,0,-21,0,-10,-11,-29,0,-26,-26,-20,0,0,0,-49,0,-50,-23,-50,-41,-50,-49,-135,-143,-139,-147,-112,-119,-234,-218,-222,-205,-218,-225,-216,-131,-135,-137,-142,-44,-38,-43,-43,-44,-41,-45,-63,-31,-61,0,0,0,-25,97,-77,-68,-206,-205,-212,-203,-193,-203,-148,-47,-782,-782,-782,-782,-782,-782,-775,-711,-738,-722,-905,-863,-1043,-1023,-1095,-941,-5579,-4958,-29974,-29977,-29977,-29978,-29977,-29977,-7618,-5106]} 1. e4 {[%emt 0:00:04]} c5 {[%emt 0:00:16]} 2. Nf3 {[%emt 0:00:09]} Nc6 {[%emt 0:00:25]} 3. Bb5 {[%emt 0:00:11]} e6 {[%emt 0:00:37]} 4. Bxc6 {[%emt 0:00:29]} bxc6 {[%emt 0:00:09]} 5. d3 {[%emt 0:00:32]} Ne7 {[%emt 0:00:47]} 6. e5 {[%emt 0:00:43] B30: Sicilian: 2...Nc6 3 Bb5, lines without ...g6.} Ng6 {[%emt 0:02:11]} 7. b3 {[%emt 0:03:27]} f6 {[%emt 0:06:04]} 8. Bb2 {[%emt 0:01:11] The position is equal.} fxe5 {[%emt 0:04:37]} 9. Nxe5 {[%emt 0:00:19] [#]} Qf6 $146 {[%emt 0:01:39]} ({Predecessor:} 9... Nxe5 10. Bxe5 Qg5 11. Bg3 Be7 12. Nd2 O-O 13. O-O Qd5 14. Qe2 d6 15. Ne4 e5 {0-1 (47) Volek,R (2035)-Bartos,J (2188) Teplice 2009}) 10. Qh5 {[%emt 0:01:54]} (10. Nc4 $16 Qh4 11. Qf3) 10... d6 $11 {[%emt 1:18:45]} 11. Nc4 {[%emt 0:01:06]} e5 {[%emt 0:00:30]} 12. O-O {[%emt 0:02:09][%cal Of2f4] Strongly threatening f4!} Qf5 {[%emt 0:00:00]} 13. Qxf5 Bxf5 14. Nbd2 {[%emt 0:01:42]} Kd7 {[%emt 0:00:00]} 15. f3 {[%emt 0:13:53]} Be7 {[%emt 0:00:00]} 16. Ne4 {[%emt 0:01:11]} Rhf8 {[%emt 0:00:00]} 17. Nf2 {[%emt 0:02:08]} Nh4 {[%emt 0:00:00]} 18. Ne4 {[%emt 0:03:59]} Ng6 {[%emt 0:00:00]} 19. Rad1 {[%emt 0:02:34]} Be6 {[%emt 0:00:00]} 20. Ba3 {[%emt 0:02:06]} Rfb8 {[%emt 0:00:00]} 21. Nc3 {[%emt 0:03:09]} Nf4 {[%emt 0:00:00]} 22. Rfe1 {[%emt 0:04:20]} g5 {[%emt 0:00:00]} 23. Ne4 {[%emt 0:05:54]} Kc7 {[%emt 0:00:00]} 24. Bb2 {[%emt 0:01:54]} (24. Nf2 $11 {feels stronger.}) 24... Ng6 {[%emt 0:00:00]} (24... Rg8 $15) 25. h3 {[%emt 0:09:25]} (25. Nf2 $11) 25... Rf8 {[%emt 0:00:00]} (25... d5 26. Nxe5 $1 Nf4 27. Ng3 $16) 26. Ba3 {[%emt 0:03:55]} h5 {[%emt 0:00:00]} 27. Nf2 {[%emt 0:03:59]} a5 {[%emt 0:00:00][%cal Ba7a5,Ba5a4][%mdl 32]} 28. c3 {[%emt 0:07:01]} (28. Bc1 $15) 28... a4 $17 {[%emt 0:00:00] And now ...axb3 would win.} 29. b4 {[%emt 0:00:26]} cxb4 {[%emt 0:00:00]} 30. cxb4 {[%emt 0:00:15]} Nf4 {[%emt 0:00:00][%cal Of4d3]} 31. Rc1 {[%emt 0:01:16]} (31. b5 $17) 31... g4 $1 $19 {[%emt 0:00:00]} 32. hxg4 {[%emt 0:07:42]} hxg4 {[%emt 0:00:00]} 33. g3 {[%emt 0:00:47]} Nh3+ {[%emt 0:00:00]} ({Inferior is} 33... gxf3 34. gxf4 Rxf4 35. b5 $14) 34. Nxh3 {[%emt 0:00:05]} Rxf3 {[%emt 0:00:00]} 35. Nf4 {[%emt 0:04:46]} Rxg3+ {[%emt 0:05:20]} 36. Ng2 {[%emt 0:00:27][%cal Ob4b5]} ({But not} 36. Kh2 $2 exf4 37. Bb2 Rh3+ 38. Kg1 Rh6 $19) 36... Bg5 {[%emt 0:02:26]} ({Stronger than} 36... Rxd3 37. Bb2 $17) (36... Bd5 $17 37. Rc2 Rh8) 37. Rc2 $15 {[%emt 0:05:51][%cal Oc4d6]} Rxd3 {[%emt 0:03:29] Hoping for ...Bxc4.} 38. Bc1 {[%emt 0:00:15]} Bd8 {[%emt 0:01:27][%cal Bg5d8,Bd8c7,Bc7b6][%mdl 32] A strong pair of Bishops.} 39. Be3 {[%emt 0:00:36]} Kd7 {[%emt 0:00:32]} 40. Kf2 {[%emt 0:03:00]} Bc7 {[%emt 0:00:38]} 41. Ke2 {[%emt 0:01:40]} Bxc4 {[%emt 0:00:34]} ({Black should try} 41... Rd5 $1 $15) 42. Rxc4 $11 {[%emt 0:00:05]} Ra3 {[%emt 0:00:06]} 43. Rc2 {[%emt 0:02:51]} Rb8 {[%emt 0:00:07] [#]} (43... Rh8 $11) 44. Bd2 $2 {[%emt 0:00:25]} (44. Rh1 $1 $16 {[%cal Rh1h7] and life is bright. Threatens to win with Rh7+.} Re8 45. b5) 44... Bb6 $36 {[%emt 0:00:25][%mdl 2048] Black has some pressure.} (44... Rg3 $5 {[%cal Rg3g2]} 45. Nh4 Rh3 $17) 45. Rh1 {[%emt 0:00:35]} (45. Rf1 $15) 45... Rh3 $19 {[%emt 0:00:08]} 46. Rxh3 {[%emt 0:01:20]} gxh3 {[%emt 0:00:07]} 47. Ne3 {[%emt 0:00:05]} Bxe3 {[%emt 0:01:18]} 48. Kxe3 {[%emt 0:00:41][%mdl 4096] Endgame [#] KRB-KR} Rg8 {[%emt 0:00:15]} ({Better is} 48... Rh8 $1 $17 {White must now prevent ...h2.} 49. Rc1 Rg8) 49. Rc1 $2 {[%emt 0:00:58][%mdl 8192]} (49. Be1 $15) 49... Rg3+ {[%emt 0:00:20]} 50. Ke2 {[%emt 0:00:59]} Rg2+ {[%emt 0:00:54]} 51. Kd3 {[%emt 0:00:02]} h2 {[%emt 0:01:05]} 52. Rh1 {[%emt 0:00:04]} Ke6 {[%emt 0:00:06]} 53. a3 {[%emt 0:00:09]} Kf5 {[%emt 0:00:16]} 54. Be3 {[%emt 0:00:39]} Kg4 {[%emt 0:00:26]} 55. Bb6 {[%emt 0:00:43]} Kh3 {[%emt 0:01:03]} 56. Rf1 {[%emt 0:00:39]} Rg4 {[%emt 0:00:29]} 57. Be3 {[%emt 0:00:18]} Rg3 {[%emt 0:00:38][%cal Og3e3] ( -> ...Rxe3+!)} 58. Ke2 {[%emt 0:00:21] [#]} Rxe3+ $1 {[%emt 0:00:28][%mdl 512]} 59. Kxe3 {[%emt 0:00:05]} Kg2 {[%emt 0:00:06]} 60. Rf2+ {[%emt 0:02:04]} Kg1 {[%emt 0:00:14]} 61. Rd2 {[%emt 0:00:53]} h1=Q {[%emt 0:00:18] Weighted Error Value: White=0.66/Black=0.17 (very precise)} 0-1